[Event "Titled Tuesday Blitz March 28 Late 2023"]
[White "Kubatko, Ivan"]
[Black "Stanisz, Patryk"]
[WhiteFideId "24111473"]
[BlackFideId "1123106"]
[WhiteElo "2285"]
[BlackElo "2069"]
[Result "1-0"]
[Round "09"]
[TimeControl "180+2"]
[Date "2023.03.28"]
[WhiteClock "0:00:14"]
[BlackClock "0:00:23"]

1. e4 {[%clk 0:03:00]}  c5 {[%clk 0:02:59]} 2. Nc3 {[%clk 0:02:51]}  Nc6 {[%clk 0:02:59]} 3. f4 {[%clk 0:02:50]}  g6 {[%clk 0:02:58]} 4. Nf3 {[%clk 0:02:50]}  Bg7 {[%clk 0:02:58]} 5. Bc4 {[%clk 0:02:50]}  e6 {[%clk 0:02:58]} 6. f5 {[%clk 0:02:50]}  Nge7 {[%clk 0:02:56]} 7. fxe6 {[%clk 0:02:51]}  fxe6 {[%clk 0:02:57]} 8. d3 {[%clk 0:02:51]}  O-O {[%clk 0:02:55]} 9. O-O {[%clk 0:02:50]}  d5 {[%clk 0:02:36]} 10. Bb3 {[%clk 0:02:49]}  Nd4 {[%clk 0:02:29]} 11. Nxd4 {[%clk 0:02:31]}  cxd4 {[%clk 0:02:20]} 12. Ne2 {[%clk 0:02:31]}  Rxf1+ {[%clk 0:02:16]} 13. Qxf1 {[%clk 0:02:30]}  dxe4 {[%clk 0:02:08]} 14. dxe4 {[%clk 0:02:27]}  d3 {[%clk 0:02:09]} 15. cxd3 {[%clk 0:02:11]}  Qxd3 {[%clk 0:02:08]} 16. Bg5 {[%clk 0:02:10]}  Nc6 {[%clk 0:02:03]} 17. Rd1 {[%clk 0:01:41]}  Qxe4 {[%clk 0:01:47]} 18. Ng3 {[%clk 0:01:24]}  Qe5 {[%clk 0:01:37]} 19. Bf4 {[%clk 0:01:12]}  Qc5+ {[%clk 0:01:36]} 20. Kh1 {[%clk 0:01:12]}  Nd4 {[%clk 0:01:14]} 21. Ne4 {[%clk 0:01:03]}  Qc6 {[%clk 0:01:01]} 22. Qd3 {[%clk 0:00:31]}  Nxb3 {[%clk 0:00:53]} 23. Qd8+ {[%clk 0:00:30]}  Bf8 {[%clk 0:00:43]} 24. Bh6 {[%clk 0:00:24]}  Bd7 {[%clk 0:00:32]} 25. Qxa8 {[%clk 0:00:20]}  Be8 {[%clk 0:00:33]} 26. Nf6+ {[%clk 0:00:18]}  Kf7 {[%clk 0:00:31]} 27. Qxe8+ {[%clk 0:00:13]}  Qxe8 {[%clk 0:00:30]} 28. Nxe8 {[%clk 0:00:14]}  Bxh6 {[%clk 0:00:27]} 29. Nd6+ {[%clk 0:00:14]}  Ke7 {[%clk 0:00:27]} 30. axb3 {[%clk 0:00:14]}  b6 {[%clk 0:00:24]} 31. Nc8+ {[%clk 0:00:14]}  Kf6 {[%clk 0:00:24]} 32. Nxa7 {[%clk 0:00:15]}  Be3 {[%clk 0:00:23]} 33. Nb5 {[%clk 0:00:14]} 1-0


[Site "https://www.chess.com"]

[Event "Titled Tuesday Blitz March 28 Late 2023"]
[White "Khatena, Moshe"]
[Black "Ozalp, Burak"]
[WhiteFideId "2010461"]
[BlackFideId "6314210"]
[WhiteElo "2162"]
[BlackElo "2106"]
[Result "1-0"]
[Round "09"]
[TimeControl "180+2"]
[Date "2023.03.28"]
[WhiteClock "0:00:27"]
[BlackClock "0:00:06"]

1. e4 {[%clk 0:02:58]}  e5 {[%clk 0:02:59]} 2. Bc4 {[%clk 0:02:55]}  Nf6 {[%clk 0:02:54]} 3. Nf3 {[%clk 0:02:55]}  Nc6 {[%clk 0:02:53]} 4. d3 {[%clk 0:02:52]}  h6 {[%clk 0:02:51]} 5. Nc3 {[%clk 0:02:50]}  Bc5 {[%clk 0:02:50]} 6. O-O {[%clk 0:02:48]}  d6 {[%clk 0:02:49]} 7. Ne2 {[%clk 0:02:41]}  Bg4 {[%clk 0:02:44]} 8. Ng3 {[%clk 0:02:40]}  Nd4 {[%clk 0:02:41]} 9. Be3 {[%clk 0:02:39]}  Nxf3+ {[%clk 0:02:33]} 10. gxf3 {[%clk 0:02:38]}  Bh3 {[%clk 0:02:34]} 11. Re1 {[%clk 0:02:38]}  Qd7 {[%clk 0:02:11]} 12. d4 {[%clk 0:02:37]}  exd4 {[%clk 0:02:09]} 13. Bxd4 {[%clk 0:02:38]}  Bxd4 {[%clk 0:02:02]} 14. Qxd4 {[%clk 0:02:38]}  O-O {[%clk 0:02:03]} 15. Rad1 {[%clk 0:02:33]}  Rad8 {[%clk 0:01:32]} 16. Qe3 {[%clk 0:02:28]}  Qa4 {[%clk 0:01:13]} 17. Bb3 {[%clk 0:02:24]}  Qa5 {[%clk 0:01:14]} 18. Qf4 {[%clk 0:02:17]}  Qe5 {[%clk 0:01:11]} 19. Qh4 {[%clk 0:02:16]}  Be6 {[%clk 0:01:07]} 20. c3 {[%clk 0:02:04]}  Kh7 {[%clk 0:01:06]} 21. Bxe6 {[%clk 0:01:47]}  fxe6 {[%clk 0:00:51]} 22. f4 {[%clk 0:01:46]}  Qb5 {[%clk 0:00:32]} 23. f5 {[%clk 0:01:36]}  Qxb2 {[%clk 0:00:32]} 24. Re2 {[%clk 0:01:27]}  Qxc3 {[%clk 0:00:29]} 25. fxe6 {[%clk 0:01:23]}  g5 {[%clk 0:00:27]} 26. Qh3 {[%clk 0:01:19]}  Qe5 {[%clk 0:00:26]} 27. Nf5 {[%clk 0:01:18]}  Ng8 {[%clk 0:00:16]} 28. e7 {[%clk 0:01:12]}  Nxe7 {[%clk 0:00:16]} 29. Qxh6+ {[%clk 0:01:11]}  Kg8 {[%clk 0:00:17]} 30. Qxg5+ {[%clk 0:01:11]}  Kf7 {[%clk 0:00:16]} 31. Qh5+ {[%clk 0:00:50]}  Ke6 {[%clk 0:00:16]} 32. Qh3 {[%clk 0:00:40]}  Rg8+ {[%clk 0:00:13]} 33. Kh1 {[%clk 0:00:37]}  Kf6 {[%clk 0:00:14]} 34. f4 {[%clk 0:00:31]}  Qxf4 {[%clk 0:00:12]} 35. Rf1 {[%clk 0:00:30]}  Qg4 {[%clk 0:00:09]} 36. Nh6+ {[%clk 0:00:29]}  Ke6 {[%clk 0:00:06]} 37. Nxg4 {[%clk 0:00:27]} 1-0


[Site "https://www.chess.com"]

[Event "Titled Tuesday Blitz March 28 Late 2023"]
[White "Jimenez, Joaquin"]
[Black "Barria Santos, Jose Guilherme"]
[WhiteFideId "109860"]
[BlackFideId "1939300"]
[WhiteElo "2163"]
[BlackElo "2301"]
[Result "1-0"]
[Round "09"]
[TimeControl "180+2"]
[Date "2023.03.28"]
[WhiteClock "0:00:20"]
[BlackClock "0:00:02"]

1. c4 {[%clk 0:02:42]}  Nf6 {[%clk 0:02:59]} 2. Nc3 {[%clk 0:02:41]}  g6 {[%clk 0:02:59]} 3. d4 {[%clk 0:02:40]}  Bg7 {[%clk 0:02:59]} 4. e4 {[%clk 0:02:40]}  d6 {[%clk 0:03:00]} 5. Nf3 {[%clk 0:02:40]}  O-O {[%clk 0:03:01]} 6. Be3 {[%clk 0:02:40]}  e5 {[%clk 0:02:45]} 7. dxe5 {[%clk 0:02:39]}  dxe5 {[%clk 0:02:45]} 8. Qxd8 {[%clk 0:02:39]}  Rxd8 {[%clk 0:02:45]} 9. Nd5 {[%clk 0:02:35]}  Nxd5 {[%clk 0:02:43]} 10. cxd5 {[%clk 0:02:34]}  Nd7 {[%clk 0:02:37]} 11. Rc1 {[%clk 0:02:23]}  Nf6 {[%clk 0:02:35]} 12. Bg5 {[%clk 0:01:59]}  c6 {[%clk 0:02:07]} 13. dxc6 {[%clk 0:01:38]}  h6 {[%clk 0:01:53]} 14. Bxf6 {[%clk 0:01:25]}  Bxf6 {[%clk 0:01:54]} 15. Bb5 {[%clk 0:01:21]}  bxc6 {[%clk 0:01:36]} 16. Bxc6 {[%clk 0:01:15]}  Rb8 {[%clk 0:01:35]} 17. b3 {[%clk 0:01:14]}  Ba6 {[%clk 0:01:28]} 18. Bd5 {[%clk 0:01:12]}  Rbc8 {[%clk 0:01:06]} 19. Kd2 {[%clk 0:01:07]}  g5 {[%clk 0:00:57]} 20. h3 {[%clk 0:01:03]}  h5 {[%clk 0:00:34]} 21. Rxc8 {[%clk 0:01:02]}  Rxc8 {[%clk 0:00:33]} 22. Rc1 {[%clk 0:01:03]}  Rd8 {[%clk 0:00:33]} 23. Rc7 {[%clk 0:00:57]}  g4 {[%clk 0:00:22]} 24. hxg4 {[%clk 0:00:47]}  hxg4 {[%clk 0:00:22]} 25. Nh2 {[%clk 0:00:44]}  Bg5+ {[%clk 0:00:18]} 26. Kc3 {[%clk 0:00:40]}  g3 {[%clk 0:00:15]} 27. fxg3 {[%clk 0:00:40]}  Rb8 {[%clk 0:00:12]} 28. Rxf7 {[%clk 0:00:36]}  Kh8 {[%clk 0:00:05]} 29. Rc7 {[%clk 0:00:32]}  Rg8 {[%clk 0:00:04]} 30. Ng4 {[%clk 0:00:29]}  Rf8 {[%clk 0:00:03]} 31. Kb4 {[%clk 0:00:20]}  Be2 {[%clk 0:00:02]} 32. Nxe5 {[%clk 0:00:20]} 1-0


[Site "https://www.chess.com"]

[Event "Titled Tuesday Blitz March 28 Late 2023"]
[White "Oliveira, Tiago Batista"]
[Black "Mendez Machado, Andre"]
[WhiteFideId "2108291"]
[BlackFideId "6603793"]
[WhiteElo "1962"]
[BlackElo "1984"]
[Result "0-1"]
[Round "09"]
[TimeControl "180+2"]
[Date "2023.03.28"]
[WhiteClock "0:00:01"]
[BlackClock "0:00:08"]

1. d4 {[%clk 0:02:59]}  Nf6 {[%clk 0:02:57]} 2. c4 {[%clk 0:02:59]}  e6 {[%clk 0:02:57]} 3. Nf3 {[%clk 0:02:58]}  Bb4+ {[%clk 0:02:56]} 4. Bd2 {[%clk 0:02:58]}  a5 {[%clk 0:02:51]} 5. g3 {[%clk 0:02:58]}  d5 {[%clk 0:02:48]} 6. Bg2 {[%clk 0:02:57]}  dxc4 {[%clk 0:02:46]} 7. O-O {[%clk 0:02:56]}  O-O {[%clk 0:02:37]} 8. Qc2 {[%clk 0:02:56]}  Bxd2 {[%clk 0:02:37]} 9. Nbxd2 {[%clk 0:02:52]}  b5 {[%clk 0:02:36]} 10. e4 {[%clk 0:02:50]}  Bb7 {[%clk 0:02:28]} 11. Rad1 {[%clk 0:02:37]}  Nc6 {[%clk 0:02:28]} 12. e5 {[%clk 0:02:33]}  Nd5 {[%clk 0:02:25]} 13. Ne4 {[%clk 0:02:33]}  Rb8 {[%clk 0:01:45]} 14. Neg5 {[%clk 0:02:30]}  g6 {[%clk 0:01:41]} 15. Qe4 {[%clk 0:02:29]}  h6 {[%clk 0:01:16]} 16. Nxe6 {[%clk 0:02:26]}  fxe6 {[%clk 0:01:03]} 17. Qxg6+ {[%clk 0:02:26]}  Kh8 {[%clk 0:01:04]} 18. Qxh6+ {[%clk 0:02:26]}  Kg8 {[%clk 0:01:04]} 19. Qxe6+ {[%clk 0:01:26]}  Rf7 {[%clk 0:01:01]} 20. Nh4 {[%clk 0:01:20]}  Nde7 {[%clk 0:00:36]} 21. d5 {[%clk 0:01:11]}  Bc8 {[%clk 0:00:33]} 22. Qh6 {[%clk 0:01:08]}  Nxe5 {[%clk 0:00:31]} 23. Be4 {[%clk 0:01:05]}  Nf5 {[%clk 0:00:21]} 24. Nxf5 {[%clk 0:00:54]}  Bxf5 {[%clk 0:00:22]} 25. Qe3 {[%clk 0:00:21]}  Bxe4 {[%clk 0:00:20]} 26. Qxe4 {[%clk 0:00:20]}  Nf3+ {[%clk 0:00:19]} 27. Kg2 {[%clk 0:00:20]}  Qf6 {[%clk 0:00:19]} 28. Qg4+ {[%clk 0:00:17]}  Qg7 {[%clk 0:00:18]} 29. Qe4 {[%clk 0:00:12]}  Rbf8 {[%clk 0:00:18]} 30. d6 {[%clk 0:00:10]}  Ng5 {[%clk 0:00:18]} 31. Qd5 {[%clk 0:00:07]}  cxd6 {[%clk 0:00:17]} 32. f4 {[%clk 0:00:08]}  Nh7 {[%clk 0:00:13]} 33. Qxd6 {[%clk 0:00:08]}  Nf6 {[%clk 0:00:13]} 34. Qc5 {[%clk 0:00:07]}  Ng4 {[%clk 0:00:13]} 35. Rd6 {[%clk 0:00:05]}  Re8 {[%clk 0:00:12]} 36. Rf3 {[%clk 0:00:05]}  Nf6 {[%clk 0:00:11]} 37. Qd4 {[%clk 0:00:04]}  Ne4 {[%clk 0:00:11]} 38. Rd5 {[%clk 0:00:03]}  Qxd4 {[%clk 0:00:11]} 39. Rxd4 {[%clk 0:00:03]}  Rfe7 {[%clk 0:00:11]} 40. f5 {[%clk 0:00:03]}  Nf6 {[%clk 0:00:11]} 41. Rff4 {[%clk 0:00:03]}  Re2+ {[%clk 0:00:12]} 42. Kh3 {[%clk 0:00:04]}  Rxb2 {[%clk 0:00:12]} 43. g4 {[%clk 0:00:04]}  Re3+ {[%clk 0:00:11]} 44. Kh4 {[%clk 0:00:04]}  Rxh2+ {[%clk 0:00:10]} 45. Kg5 {[%clk 0:00:05]}  Kf7 {[%clk 0:00:07]} 46. Rd6 {[%clk 0:00:04]}  Ne4+ {[%clk 0:00:07]} 47. Rxe4 {[%clk 0:00:04]}  Rxe4 {[%clk 0:00:08]} 48. Rd7+ {[%clk 0:00:03]}  Re7 {[%clk 0:00:08]} 49. Rd6 {[%clk 0:00:04]}  c3 {[%clk 0:00:07]} 50. Rc6 {[%clk 0:00:04]}  c2 {[%clk 0:00:08]} 51. f6 {[%clk 0:00:02]}  Re5+ {[%clk 0:00:08]} 52. Kf4 {[%clk 0:00:02]}  Re6 {[%clk 0:00:08]} 53. Rc7+ {[%clk 0:00:02]}  Kxf6 {[%clk 0:00:09]} 54. g5+ {[%clk 0:00:03]}  Kg6 {[%clk 0:00:09]} 55. Rc5 {[%clk 0:00:02]}  b4 {[%clk 0:00:09]} 56. Kg4 {[%clk 0:00:01]}  Re1 {[%clk 0:00:08]} 0-1


[Site "https://www.chess.com"]

[Event "Titled Tuesday Blitz March 28 Late 2023"]
[White "Araujo, Everson De Moura"]
[Black "Necula, Iulian"]
[WhiteFideId "22737197"]
[BlackFideId "1232380"]
[WhiteElo "2035"]
[BlackElo "1790"]
[Result "1-0"]
[Round "09"]
[TimeControl "180+2"]
[Date "2023.03.28"]
[WhiteClock "0:00:21"]
[BlackClock "0:00:46"]

1. d4 {[%clk 0:03:00]}  d6 {[%clk 0:03:00]} 2. Nc3 {[%clk 0:02:56]}  g6 {[%clk 0:02:56]} 3. e4 {[%clk 0:02:55]}  c6 {[%clk 0:02:54]} 4. f4 {[%clk 0:02:54]}  b5 {[%clk 0:02:53]} 5. e5 {[%clk 0:02:45]}  Bg7 {[%clk 0:02:47]} 6. Nf3 {[%clk 0:02:42]}  b4 {[%clk 0:02:46]} 7. Ne4 {[%clk 0:02:38]}  Bb7 {[%clk 0:02:43]} 8. Bd3 {[%clk 0:02:36]}  f5 {[%clk 0:02:38]} 9. Neg5 {[%clk 0:02:27]}  Bc8 {[%clk 0:02:21]} 10. e6 {[%clk 0:02:08]}  Nh6 {[%clk 0:02:20]} 11. Bc4 {[%clk 0:01:51]}  d5 {[%clk 0:02:17]} 12. Bd3 {[%clk 0:01:46]}  O-O {[%clk 0:02:17]} 13. Qe2 {[%clk 0:01:38]}  Qd6 {[%clk 0:02:16]} 14. O-O {[%clk 0:01:32]}  Rf6 {[%clk 0:02:15]} 15. Re1 {[%clk 0:01:28]}  Na6 {[%clk 0:02:08]} 16. Bxa6 {[%clk 0:01:14]}  Bxa6 {[%clk 0:02:05]} 17. Qxa6 {[%clk 0:01:15]}  Ng4 {[%clk 0:01:49]} 18. h3 {[%clk 0:01:05]}  Nh6 {[%clk 0:01:49]} 19. Qb7 {[%clk 0:01:03]}  Rff8 {[%clk 0:01:23]} 20. Ne5 {[%clk 0:00:54]}  c5 {[%clk 0:01:14]} 21. Nef7 {[%clk 0:00:47]}  Qb6 {[%clk 0:01:04]} 22. Qxd5 {[%clk 0:00:34]}  Bxd4+ {[%clk 0:01:00]} 23. Kh1 {[%clk 0:00:34]}  Bf6 {[%clk 0:00:53]} 24. Nxh6+ {[%clk 0:00:33]}  Kg7 {[%clk 0:00:53]} 25. Nhf7 {[%clk 0:00:30]}  h6 {[%clk 0:00:53]} 26. Be3 {[%clk 0:00:20]}  hxg5 {[%clk 0:00:52]} 27. fxg5 {[%clk 0:00:21]}  Bd4 {[%clk 0:00:50]} 28. Bxd4+ {[%clk 0:00:21]}  cxd4 {[%clk 0:00:51]} 29. Rad1 {[%clk 0:00:21]}  b3 {[%clk 0:00:48]} 30. Qe5+ {[%clk 0:00:21]}  Kg8 {[%clk 0:00:46]} 31. Qh8# {[%clk 0:00:21]} 1-0


[Site "https://www.chess.com"]

[Event "Titled Tuesday Blitz March 28 Late 2023"]
[White "Torres Dominguez, David"]
[Black "Bongo Akanga Ndjila, Barthelemy"]
[WhiteFideId "2220857"]
[BlackFideId "10609431"]
[WhiteElo "1999"]
[BlackElo "1768"]
[Result "1-0"]
[Round "09"]
[TimeControl "180+2"]
[Date "2023.03.28"]
[WhiteClock "0:01:29"]
[BlackClock "0:00:40"]

1. e4 {[%clk 0:03:00]}  e6 {[%clk 0:02:52]} 2. d4 {[%clk 0:03:00]}  d5 {[%clk 0:02:53]} 3. exd5 {[%clk 0:03:01]}  exd5 {[%clk 0:02:53]} 4. Bd3 {[%clk 0:03:02]}  Bd6 {[%clk 0:02:53]} 5. Qf3 {[%clk 0:03:02]}  Ne7 {[%clk 0:02:50]} 6. Bf4 {[%clk 0:03:02]}  Bxf4 {[%clk 0:02:48]} 7. Qxf4 {[%clk 0:03:02]}  O-O {[%clk 0:02:47]} 8. Nc3 {[%clk 0:03:02]}  Nd7 {[%clk 0:02:46]} 9. Nge2 {[%clk 0:03:02]}  c6 {[%clk 0:02:46]} 10. O-O {[%clk 0:03:01]}  Nf6 {[%clk 0:02:46]} 11. h3 {[%clk 0:02:57]}  Ng6 {[%clk 0:02:46]} 12. Bxg6 {[%clk 0:02:57]}  hxg6 {[%clk 0:02:45]} 13. Rfe1 {[%clk 0:02:55]}  Bf5 {[%clk 0:02:44]} 14. Qd2 {[%clk 0:02:53]}  Re8 {[%clk 0:02:43]} 15. Ng3 {[%clk 0:02:53]}  Bd7 {[%clk 0:02:39]} 16. Rxe8+ {[%clk 0:02:51]}  Bxe8 {[%clk 0:02:34]} 17. a3 {[%clk 0:02:49]}  b6 {[%clk 0:02:31]} 18. Re1 {[%clk 0:02:49]}  Bd7 {[%clk 0:02:31]} 19. Qf4 {[%clk 0:02:41]}  Qf8 {[%clk 0:02:30]} 20. Qc7 {[%clk 0:02:38]}  Re8 {[%clk 0:02:24]} 21. Rd1 {[%clk 0:02:20]}  Ra8 {[%clk 0:02:12]} 22. Re1 {[%clk 0:02:18]}  Re8 {[%clk 0:02:11]} 23. Rd1 {[%clk 0:02:09]}  Ra8 {[%clk 0:02:10]} 24. h4 {[%clk 0:02:10]}  Bg4 {[%clk 0:02:05]} 25. f3 {[%clk 0:02:09]}  Bd7 {[%clk 0:02:03]} 26. Re1 {[%clk 0:02:05]}  Re8 {[%clk 0:02:02]} 27. Rxe8 {[%clk 0:02:04]}  Qxe8 {[%clk 0:02:01]} 28. Kf2 {[%clk 0:02:04]}  c5 {[%clk 0:01:46]} 29. dxc5 {[%clk 0:02:01]}  d4 {[%clk 0:01:46]} 30. Nce4 {[%clk 0:01:57]}  Nxe4+ {[%clk 0:01:45]} 31. Nxe4 {[%clk 0:01:54]}  f5 {[%clk 0:01:44]} 32. Nd6 {[%clk 0:01:50]}  Qe3+ {[%clk 0:01:44]} 33. Kf1 {[%clk 0:01:47]}  Qc1+ {[%clk 0:01:43]} 34. Kf2 {[%clk 0:01:43]}  Qe3+ {[%clk 0:01:43]} 35. Kg3 {[%clk 0:01:40]}  f4+ {[%clk 0:01:41]} 36. Kh2 {[%clk 0:01:40]}  Qe6 {[%clk 0:01:26]} 37. Qd8+ {[%clk 0:01:37]}  Kh7 {[%clk 0:01:25]} 38. Nf7 {[%clk 0:01:37]}  Qe8 {[%clk 0:01:14]} 39. Qxe8 {[%clk 0:01:35]}  Bxe8 {[%clk 0:01:12]} 40. Ng5+ {[%clk 0:01:36]}  Kg8 {[%clk 0:01:08]} 41. cxb6 {[%clk 0:01:36]}  axb6 {[%clk 0:01:07]} 42. Ne6 {[%clk 0:01:36]}  d3 {[%clk 0:01:01]} 43. cxd3 {[%clk 0:01:35]}  Bb5 {[%clk 0:01:00]} 44. Nxf4 {[%clk 0:01:35]}  Kf7 {[%clk 0:00:59]} 45. Kg3 {[%clk 0:01:35]}  Kf6 {[%clk 0:00:57]} 46. Kf2 {[%clk 0:01:35]}  Kf5 {[%clk 0:00:56]} 47. g3 {[%clk 0:01:35]}  g5 {[%clk 0:00:56]} 48. hxg5 {[%clk 0:01:35]}  Kxg5 {[%clk 0:00:57]} 49. Ke3 {[%clk 0:01:36]}  Kf5 {[%clk 0:00:56]} 50. Nd5 {[%clk 0:01:35]}  g5 {[%clk 0:00:52]} 51. g4+ {[%clk 0:01:31]}  Ke5 {[%clk 0:00:52]} 52. Nxb6 {[%clk 0:01:32]}  Bc6 {[%clk 0:00:51]} 53. Nc4+ {[%clk 0:01:32]}  Ke6 {[%clk 0:00:50]} 54. d4 {[%clk 0:01:30]}  Bd5 {[%clk 0:00:49]} 55. Nd2 {[%clk 0:01:29]}  Ba2 {[%clk 0:00:44]} 56. Ne4 {[%clk 0:01:29]}  Bb1 {[%clk 0:00:40]} 57. Nxg5+ {[%clk 0:01:29]} 1-0


[Site "https://www.chess.com"]

[Event "Titled Tuesday Blitz March 28 Late 2023"]
[White "dDobravcan"]
[Black "Burke, Paul"]
[BlackFideId "2605767"]
[WhiteElo "2131"]
[BlackElo "1945"]
[Result "1-0"]
[Round "09"]
[TimeControl "180+2"]
[Date "2023.03.28"]
[WhiteClock "0:01:04"]
[BlackClock "0:00:05"]

1. e4 {[%clk 0:03:00]}  e5 {[%clk 0:01:50]} 2. Nf3 {[%clk 0:02:58]}  Nc6 {[%clk 0:01:50]} 3. Bb5 {[%clk 0:02:56]}  f5 {[%clk 0:01:50]} 4. d3 {[%clk 0:02:55]}  Nf6 {[%clk 0:01:50]} 5. Nbd2 {[%clk 0:02:54]}  Be7 {[%clk 0:01:49]} 6. O-O {[%clk 0:02:52]}  O-O {[%clk 0:01:49]} 7. Bxc6 {[%clk 0:02:29]}  dxc6 {[%clk 0:01:48]} 8. Nxe5 {[%clk 0:02:29]}  Bd6 {[%clk 0:01:44]} 9. Nec4 {[%clk 0:02:24]}  Ng4 {[%clk 0:01:43]} 10. Nf3 {[%clk 0:02:16]}  f4 {[%clk 0:01:28]} 11. e5 {[%clk 0:02:08]}  Bc5 {[%clk 0:01:21]} 12. d4 {[%clk 0:02:08]}  Bb6 {[%clk 0:01:20]} 13. a4 {[%clk 0:02:06]}  a6 {[%clk 0:01:19]} 14. Nxb6 {[%clk 0:01:50]}  cxb6 {[%clk 0:01:18]} 15. Re1 {[%clk 0:01:44]}  Be6 {[%clk 0:01:18]} 16. Qd3 {[%clk 0:01:30]}  Qe8 {[%clk 0:01:00]} 17. h3 {[%clk 0:01:28]}  Nh6 {[%clk 0:00:58]} 18. Ng5 {[%clk 0:01:28]}  Bf5 {[%clk 0:00:54]} 19. Qb3+ {[%clk 0:01:27]}  Kh8 {[%clk 0:00:52]} 20. Bxf4 {[%clk 0:01:27]}  Qh5 {[%clk 0:00:26]} 21. e6 {[%clk 0:01:12]}  Rae8 {[%clk 0:00:11]} 22. Re3 {[%clk 0:01:11]}  Rf6 {[%clk 0:00:09]} 23. Rae1 {[%clk 0:01:09]}  Rg6 {[%clk 0:00:07]} 24. Nf7+ {[%clk 0:01:06]}  Nxf7 {[%clk 0:00:06]} 25. exf7 {[%clk 0:01:04]}  Rf8 {[%clk 0:00:05]} 26. Re8 {[%clk 0:01:04]} 1-0


[Site "https://www.chess.com"]

[Event "Titled Tuesday Blitz March 28 Late 2023"]
[White "Stead, Kerry"]
[Black "Sanchez, Robert"]
[WhiteFideId "3202577"]
[BlackFideId "2034360"]
[WhiteElo "1997"]
[BlackElo "2066"]
[Result "1-0"]
[Round "09"]
[TimeControl "180+2"]
[Date "2023.03.28"]
[WhiteClock "0:00:44"]
[BlackClock "0:02:51"]

1. d4 {[%clk 0:01:42]}  d5 {[%clk 0:02:57]} 2. e4 {[%clk 0:01:29]}  e6 {[%clk 0:02:55]} 3. Be3 {[%clk 0:01:16]}  dxe4 {[%clk 0:02:54]} 4. Nd2 {[%clk 0:01:16]}  Nf6 {[%clk 0:02:54]} 5. f3 {[%clk 0:01:16]}  exf3 {[%clk 0:02:54]} 6. Ngxf3 {[%clk 0:01:15]}  Nd5 {[%clk 0:02:53]} 7. Qe2 {[%clk 0:01:14]}  Be7 {[%clk 0:02:52]} 8. c3 {[%clk 0:01:11]}  Nxe3 {[%clk 0:02:52]} 9. Qxe3 {[%clk 0:01:07]}  O-O {[%clk 0:02:53]} 10. Bd3 {[%clk 0:00:44]}  Nd7 {[%clk 0:02:51]} 1-0


[Site "https://www.chess.com"]

[Event "Titled Tuesday Blitz March 28 Late 2023"]
[White "Durarbayli, Vasif"]
[Black "Lazavik, Denis"]
[WhiteFideId "13402935"]
[BlackFideId "13515110"]
[WhiteElo "2543"]
[BlackElo "2560"]
[Result "0-1"]
[Round "10"]
[TimeControl "180+2"]
[Date "2023.03.28"]
[WhiteClock "0:00:02"]
[BlackClock "0:00:49"]

1. e4 {[%clk 0:03:00]}  c5 {[%clk 0:03:00]} 2. Nf3 {[%clk 0:03:01]}  e6 {[%clk 0:03:01]} 3. Nc3 {[%clk 0:03:00]}  Nc6 {[%clk 0:03:01]} 4. d4 {[%clk 0:03:00]}  cxd4 {[%clk 0:03:01]} 5. Nxd4 {[%clk 0:03:01]}  Qc7 {[%clk 0:03:01]} 6. Be3 {[%clk 0:02:59]}  a6 {[%clk 0:03:01]} 7. Qf3 {[%clk 0:02:59]}  b5 {[%clk 0:02:51]} 8. Nxc6 {[%clk 0:02:51]}  Qxc6 {[%clk 0:02:50]} 9. Bd3 {[%clk 0:02:49]}  Ba3 {[%clk 0:02:48]} 10. bxa3 {[%clk 0:02:28]}  Qxc3+ {[%clk 0:02:47]} 11. Ke2 {[%clk 0:02:29]}  Nf6 {[%clk 0:02:35]} 12. Bd2 {[%clk 0:02:21]}  Qc5 {[%clk 0:02:31]} 13. Qg3 {[%clk 0:02:14]}  Nh5 {[%clk 0:02:27]} 14. Qg4 {[%clk 0:02:06]}  Bb7 {[%clk 0:02:22]} 15. f4 {[%clk 0:01:57]}  g6 {[%clk 0:02:14]} 16. Bb4 {[%clk 0:01:42]}  Qc7 {[%clk 0:02:03]} 17. e5 {[%clk 0:01:37]}  f5 {[%clk 0:02:01]} 18. Qg5 {[%clk 0:00:50]}  Qd8 {[%clk 0:02:00]} 19. Qxd8+ {[%clk 0:00:37]}  Rxd8 {[%clk 0:01:59]} 20. g3 {[%clk 0:00:31]}  Bxh1 {[%clk 0:01:54]} 21. Rxh1 {[%clk 0:00:32]}  Kf7 {[%clk 0:01:54]} 22. a4 {[%clk 0:00:26]}  bxa4 {[%clk 0:01:53]} 23. Bxa6 {[%clk 0:00:27]}  h6 {[%clk 0:01:48]} 24. Ke3 {[%clk 0:00:23]}  g5 {[%clk 0:01:47]} 25. Be2 {[%clk 0:00:23]}  Ng7 {[%clk 0:01:42]} 26. Rd1 {[%clk 0:00:23]}  Kg6 {[%clk 0:01:38]} 27. c4 {[%clk 0:00:17]}  Rb8 {[%clk 0:01:35]} 28. a3 {[%clk 0:00:17]}  Rb7 {[%clk 0:01:35]} 29. Bf3 {[%clk 0:00:11]}  Rc7 {[%clk 0:01:35]} 30. Rd4 {[%clk 0:00:12]}  g4 {[%clk 0:01:35]} 31. Bd1 {[%clk 0:00:11]}  Ra8 {[%clk 0:01:31]} 32. Kd3 {[%clk 0:00:11]}  h5 {[%clk 0:01:30]} 33. Kc3 {[%clk 0:00:02]}  h4 {[%clk 0:01:30]} 34. Rd3 {[%clk 0:00:03]}  hxg3 {[%clk 0:01:29]} 35. hxg3 {[%clk 0:00:04]}  Nh5 {[%clk 0:01:28]} 36. c5 {[%clk 0:00:04]}  Ng7 {[%clk 0:01:10]} 37. Kc4 {[%clk 0:00:05]}  Ne8 {[%clk 0:01:09]} 38. Kb5 {[%clk 0:00:04]}  Rb7+ {[%clk 0:01:09]} 39. Kc4 {[%clk 0:00:04]}  Kf7 {[%clk 0:01:04]} 40. Rd2 {[%clk 0:00:04]}  Rc7 {[%clk 0:01:02]} 41. Kb5 {[%clk 0:00:04]}  Rca7 {[%clk 0:01:03]} 42. Kc4 {[%clk 0:00:04]}  Ng7 {[%clk 0:01:01]} 43. Be2 {[%clk 0:00:04]}  Rh8 {[%clk 0:00:56]} 44. Bf1 {[%clk 0:00:04]}  Rh1 {[%clk 0:00:54]} 45. Bg2 {[%clk 0:00:01]}  Rh2 {[%clk 0:00:54]} 46. c6 {[%clk 0:00:01]}  dxc6 {[%clk 0:00:54]} 47. Bc5 {[%clk 0:00:01]}  Rb7 {[%clk 0:00:52]} 48. Bg1 {[%clk 0:00:02]}  Rxg2 {[%clk 0:00:48]} 49. Rxg2 {[%clk 0:00:02]}  Rb3 {[%clk 0:00:49]} 0-1


[Site "https://www.chess.com"]